bitfinex/quotes_ETHUSD_20220120
["timestamp","ask_amount","ask_price","bid_price","bid_amount"]
[1642692843565,2.09500377,3256.9,3256.7,0.00568424]
[1642692843963,0.3,3256.8,3256.7,0.00568424]
[1642692848357,1.245227,3256.3,3256.2,0.00172414]
[1642692848555,1.245227,3256.3,3256.2,2.61197665]
[1642692849256,1.245227,3256.3,3256.1,0.44729314]
[1642692849257,1.245227,3256.3,3256.1,0.00429314]
[1642692849453,1.245227,3256.3,3256.1,0.002569]
[1642692850259,1.545227,3256.3,3256.1,0.002569]
[1642692850659,3.081677,3256.3,3256.1,0.002569]
[1642692851712,6.15862238,3256.3,3256.1,0.002569]
[1642692851912,2.98046143,3256.2,3256.1,0.002569]
[1642692852111,1.24614952,3256.2,3256.1,0.002569]
[1642692852311,6.85754952,3256.2,3256.1,0.00597954]
[1642692852510,9.84437516,3256.2,3255.3,0.00353984]
[1642692852711,9.84437516,3256.2,3255.4,2.61282128]
[1642692852712,0.76832,3256.1,3255.4,2.61282128]
[1642692852913,0.76832,3256.1,3255.5,0.00172414]
[1642692852914,0.76832,3255.9,3255.5,0.00172414]
[1642692853112,0.76832,3255.9,3255.5,2.61454542]
[1642692853310,0.76832,3255.9,3255.6,0.00284212]
[1642692853515,0.76832,3255.9,3255.6,2.61730186]
[1642692853712,1.14773774,3255.8,3255.6,0.00284212]
[1642692853912,2.98444774,3255.8,3255.7,0.00227369]
[1642692854711,2.98444774,3255.8,3255.4,2.5673017]
[1642692854911,2.98444774,3255.8,3255.4,0.00113684]
[1642692855312,3.75276774,3255.8,3255.4,0.00113684]
[1642692855764,0.3,3255.7,3255.4,0.00113684]
[1642692855966,3.66284694,3255.5,3255.4,0.00113684]
[1642692856166,3.66284694,3255.5,3254.5,0.0018157]
[1642692856167,0.6,3255.5,3254.5,0.0018157]
[1642692856367,0.7685,3255.4,3254.5,0.0018157]
[1642692856565,0.7685,3255.4,3254.6,0.00454739]
[1642692856566,0.3,3255.2,3254.6,0.00454739]
[1642692856767,0.3,3255.2,3254.7,0.443]
[1642692856968,1.2202,3255.7,3254.7,0.443]
[1642692857166,1.2202,3255.7,3254.8,0.00801024]
[1642692857369,0.00113684,3255.6,3254.9,0.443]
[1642692857566,0.00113684,3255.6,3254.9,0.44584212]
[1642692857767,0.00113684,3255.6,3255.2,1.37764822]
[1642692857970,0.00113684,3255.6,3255.0,0.0022737]
[1642692858169,0.00113684,3255.6,3255.0,0.4452737]
[1642692858470,0.00113684,3255.6,3255.1,0.00170528]
[1642692858674,0.76950684,3255.6,3255.1,0.00170528]
[1642692859071,1.51823585,3255.4,3255.1,0.00170528]
[1642692859333,1.5096102,3255.3,3255.1,0.00170528]
[1642692859521,0.3,3255.2,3255.1,0.00170528]
[1642692860221,1.06845,3255.2,3254.5,0.0018157]
[1642692860422,1.06845,3255.2,3254.6,0.00284211]
[1642692860620,0.76848,3255.0,3254.6,0.00284211]
[1642692860820,0.3,3254.9,3254.6,0.00284211]
[1642692861225,1.09794311,3254.8,3254.6,0.00284211]
[1642692861829,1.39794311,3254.8,3254.6,0.00284211]
[1642692862029,5.75,3254.7,3254.6,0.00284211]
[1642692862429,6.05,3254.7,3254.6,0.00284211]
[1642692863259,0.3,3254.7,3254.6,0.00284211]
[1642692863662,6.58714311,3254.8,3254.6,0.00284211]
[1642692865263,6.0,3254.6,3254.5,0.0018157]
[1642692865662,0.7688442,3254.4,3253.8,0.0030132]
[1642692865865,2.0057442,3254.4,3253.8,0.0030132]
[1642692866064,0.3,3254.3,3253.9,0.00397897]
[1642692866466,1.54833617,3254.1,3253.9,0.00397897]
[1642692866705,7.1007905,3254.0,3253.9,0.00397897]
[1642692868715,1.1007905,3254.0,3253.9,0.00397897]
[1642692869114,3.8007905,3254.0,3253.9,0.00397897]
[1642692869311,1.1007905,3254.0,3252.8,0.77106024]
[1642692869513,1.31603644,3253.2,3252.8,0.00230024]
[1642692869711,2.56961365,3254.1,3253.5,2.63207287]
[1642692869712,1.2297549,3254.0,3253.5,2.63207287]
[1642692869911,1.2297549,3254.0,3253.6,0.00230024]
[1642692870111,1.2297549,3254.0,3253.6,0.00400551]
[1642692870312,1.2297549,3254.0,3253.7,0.00113684]
[1642692870313,4.44792152,3254.0,3253.7,0.00113684]
[1642692870556,5.44792152,3254.0,3253.7,0.00113684]
[1642692870755,0.15339,3253.8,3253.7,0.00113684]
[1642692871765,4.36124073,3254.0,3253.7,0.00113684]
[1642692871961,4.20785073,3254.0,3253.7,0.00113684]
[1642692872961,1.2297549,3254.0,3253.7,0.00113684]
[1642692873164,2.2297549,3254.0,3253.7,0.00113684]
[1642692873364,2.2297549,3254.0,3253.6,0.00230024]
[1642692873365,6.0,3253.7,3253.6,0.00230024]
[1642692873562,7.0,3253.7,3253.5,2.63207287]
[1642692873962,5.05,3253.5,3252.5,0.00230024]
[1642692874215,1.3477132,3252.6,3252.4,0.39530024]
[1642692874416,1.3477132,3252.6,3252.5,0.0023006]
[1642692874614,1.43718513,3252.7,3252.6,2.69542639]
[1642692875014,2.65,3252.6,3252.5,0.0023006]
[1642692875315,2.65,3252.6,3251.7,2.82570994]
[1642692875513,2.65,3252.6,3251.8,2.61519265]
[1642692875712,2.65,3252.6,3251.9,2.61519265]
[1642692875916,1.4012004,3252.1,3251.9,2.61519265]
[1642692876115,1.4012004,3252.1,3252.0,0.00341054]
[1642692876414,1.4012004,3252.1,3251.5,0.443]
[1642692876415,1.4012004,3252.1,3251.6,2.62118706]
[1642692876615,1.4012004,3252.1,3251.6,0.00568424]
[1642692876820,1.4012004,3252.1,3251.8,0.45418405]
[1642692877022,1.4012004,3252.1,3251.6,0.45986829]
[1642692877223,1.4012004,3252.1,3251.9,0.00397897]
[1642692877418,1.4012004,3252.1,3251.8,0.45418405]
[1642692877621,1.4012004,3252.1,3251.9,0.00397897]
[1642692877622,3.85,3252.0,3251.9,0.00397897]
[1642692878062,7.03314388,3252.0,3251.5,0.00625266]
[1642692878265,7.03314388,3252.0,3251.6,2.61569702]
[1642692878462,7.03314388,3252.0,3251.5,0.00625266]
[1642692878463,6.0,3251.8,3251.5,0.00625266]
[1642692878663,6.0,3251.8,3251.4,0.002395]
[1642692878664,7.53882,3251.8,3251.7,0.00511581]
[1642692878862,7.53882,3251.8,3251.5,0.00625266]
[1642692879262,6.15339,3251.6,3251.5,0.00625266]
[1642692879462,7.34102069,3251.6,3251.5,0.00625266]
[1642692879962,8.49441069,3251.6,3251.5,0.00625266]
[1642692880765,1.34102069,3251.6,3251.5,0.00625266]
[1642692880962,1.34102069,3251.6,3250.6,0.443]
[1642692881367,1.34102069,3251.6,3250.7,0.00454739]
[1642692881812,1.34102069,3251.6,3251.0,1.50857345]
[1642692882012,1.64102069,3251.6,3251.0,1.50857345]
[1642692882212,1.10209668,3251.1,3250.6,2.21227]
[1642692882416,0.3,3251.6,3250.6,2.21227]
[1642692882417,4.83238,3251.6,3251.3,1.60686364]
[1642692882615,1.36938,3251.6,3251.3,1.60686364]
[1642692883412,1.26224309,3251.5,3251.3,1.60686364]
[1642692884612,7.97070979,3252.1,3251.7,2.17961908]
[1642692884813,6.0,3251.9,3251.3,1.60686364]
[1642692885016,0.15375,3251.8,3251.3,1.60686364]
[1642692885213,1.15545527,3251.8,3251.3,1.60686364]
[1642692885470,1.29325501,3251.6,3251.3,1.60686364]
[1642692885658,5.25375,3251.4,3251.3,1.60686364]
[1642692886058,1.923226,3251.4,3251.3,1.60800049]
[1642692886359,1.923226,3251.4,3250.3,0.00229974]
[1642692886360,0.7696,3251.1,3250.3,0.00229974]
[1642692886659,0.7696,3251.1,3249.8,1.40565002]
[1642692886660,0.15375,3251.0,3250.4,0.00511581]
[1642692887062,0.15375,3251.0,3250.2,0.00625265]
[1642692887261,0.15375,3251.0,3250.0,0.0073895]
[1642692887464,1.5391878,3250.8,3250.0,0.0073895]
[1642692888361,0.76959,3250.8,3250.0,0.0073895]
[1642692888561,1.30470353,3250.4,3249.7,8.93509534]
[1642692888763,1.30470353,3250.4,3249.8,0.0023001]
[1642692888962,1.30470353,3250.4,3249.8,0.00343695]
[1642692888963,0.00170527,3250.3,3249.8,0.00343695]
[1642692889407,1.76959,3250.8,3250.7,1.80590985]
[1642692889608,0.76959,3250.8,3250.7,1.80590985]
[1642692889811,8.63379,3251.2,3250.7,1.80590985]
[1642692889812,5.5553,3251.2,3250.7,1.80590985]
[1642692890015,0.76948,3251.3,3250.7,1.80820995]
[1642692890212,0.00454738,3251.0,3250.8,0.0023001]
[1642692890415,0.00454738,3251.0,3250.7,1.80590985]
[1642692890613,0.00397896,3250.9,3250.7,3.01396135]
[1642692890813,0.00397896,3250.9,3250.8,0.0023001]
[1642692891013,0.00341054,3250.8,3250.7,1.75590985]
[1642692891214,0.00397896,3250.9,3250.7,1.75820995]
[1642692891415,0.00341054,3250.8,3250.7,1.75590985]
[1642692891614,0.00341054,3250.8,3250.7,1.75820995]
[1642692891816,0.00341054,3250.8,3250.7,2.31309586]
[1642692892967,0.15716054,3250.8,3250.7,2.31309586]
[1642692893556,0.00341054,3250.8,3250.7,2.31309586]
[1642692893762,0.15716054,3250.8,3250.7,2.31309586]
[1642692893963,2.85,3250.7,3250.1,0.0023001]
[1642692894164,2.85,3250.7,3249.9,0.00170528]
[1642692894165,6.698501,3250.7,3249.9,0.00170528]
[1642692894361,0.00227369,3250.6,3249.9,0.00170528]
[1642692894561,0.00227369,3250.6,3249.7,0.00514222]
[1642692894761,1.0,3251.0,3250.8,1.80692522]
[1642692895161,0.00170527,3250.9,3250.8,1.80692522]
[1642692895563,1.32291618,3251.1,3250.8,1.80692522]
[1642692895564,0.00227369,3251.0,3250.8,1.80692522]
[1642692897514,0.77182909,3251.0,3250.8,1.80692522]
[1642692897911,1.77182909,3251.0,3250.8,1.80692522]
[1642692898114,0.77182909,3251.0,3250.8,1.80692522]
[1642692899116,1.77182909,3251.0,3250.8,1.80692522]
[1642692899315,0.00227369,3251.0,3250.8,1.80692522]
[1642692899716,0.3,3251.0,3250.8,1.80692522]
[1642692899917,1.3,3251.0,3250.8,1.80692522]
[1642692900115,0.3,3251.0,3250.8,1.80692522]
[1642692900466,2.59872846,3250.9,3250.8,1.80692522]
[1642692900857,3.59872846,3250.9,3250.8,1.80806206]
[1642692901257,3.89872846,3250.9,3250.8,1.80806206]
[1642692901559,2.76818069,3250.9,3250.8,1.75806206]
[1642692901963,1.76818069,3250.9,3250.8,1.75806206]
[1642692902163,2.76818069,3250.9,3250.8,1.75806206]
[1642692902362,3.05737035,3250.9,3250.8,1.75806206]
[1642692902563,4.05737035,3250.9,3250.8,1.75806206]
[1642692903967,5.95,3250.8,3249.8,0.0023001]
[1642692904213,0.76965,3250.6,3249.7,2.7707645]
[1642692904410,0.76961,3250.7,3249.9,0.00511582]
[1642692904610,1.42426281,3250.3,3249.9,2.7707645]
[1642692904811,1.42426281,3250.3,3250.0,0.00229876]
[1642692905013,1.44618765,3250.7,3250.5,2.84852562]
[1642692905212,7.9977,3250.8,3250.5,2.74852562]
[1642692905213,1.0,3250.8,3250.5,2.74852562]
[1642692905414,1.0,3250.8,3250.6,0.00113685]
[1642692905716,0.3,3250.9,3250.6,0.00113685]
[1642692906117,1.37510134,3250.8,3250.6,0.00113685]
[1642692906919,1.24917958,3250.7,3250.6,0.00113685]
[1642692907121,6.64917958,3250.7,3250.6,0.00113685]
[1642692908458,7.41887088,3250.7,3250.6,0.00113685]
[1642692908659,9.6696913,3250.7,3250.6,0.00113685]
[1642692909059,5.2696913,3250.7,3250.6,0.00113685]
[1642692909659,4.5,3250.7,3250.6,0.00113685]
[1642692909864,1.0,3250.7,3250.6,0.00113685]
[1642692910065,1.72840865,3250.9,3250.6,0.00113685]
[1642692910464,2.72840865,3250.9,3250.6,0.00113685]
[1642692911263,2.72840865,3250.9,3250.5,2.75082438]
[1642692911264,6.0,3250.6,3250.5,2.75082438]
[1642692911466,6.0,3250.5,3249.4,0.00229876]
[1642692911712,1.46574244,3250.1,3249.4,0.00229876]
[1642692911915,1.46574244,3250.1,3249.5,0.00625266]
[1642692912515,1.46574244,3250.1,3249.2,0.00229876]
[1642692912516,2.46574244,3250.1,3249.3,0.00738951]
[1642692912717,1.46574244,3250.1,3249.4,2.61751175]
[1642692912919,2.46574244,3250.1,3249.5,0.00229876]
[1642692913117,1.2473,3250.2,3249.5,0.00229876]
[1642692913320,1.2473,3250.2,3249.6,0.00568424]
[1642692913919,2.01713,3250.2,3249.6,0.00568424]
[1642692914118,2.01713,3250.2,3249.7,2.61741942]
[1642692914419,1.70925127,3250.1,3249.8,0.00454739]
[1642692914621,2.70925127,3250.1,3249.8,0.00684615]
[1642692914821,1.40378917,3250.0,3249.8,0.00454739]
[1642692915022,2.40378917,3250.0,3249.9,0.00397897]
[1642692915221,2.40378917,3250.0,3249.3,0.00738951]
[1642692915465,1.35728561,3249.6,3249.4,2.61760006]
[1642692915656,0.7698914,3249.7,3249.4,2.61760006]
[1642692916057,0.7698914,3249.7,3249.4,2.61989882]
[1642692916256,1.53977,3249.8,3249.4,2.61989882]
[1642692916862,1.53853593,3249.5,3249.4,2.61989882]
[1642692917061,1.53853593,3249.5,3249.4,2.61760006]
[1642692917261,1.76989,3249.7,3249.4,2.62442114]
[1642692917461,3.508,3249.6,3249.5,2.61760006]
[1642692917663,4.508,3249.6,3249.5,2.61760006]
[1642692918064,3.508,3249.6,3249.5,2.61741493]
[1642692918262,4.77334082,3249.6,3249.4,0.00682108]
[1642692918663,4.77334082,3249.6,3249.1,0.00852635]
[1642692918863,4.77334082,3249.6,3249.2,2.51745625]
[1642692918864,1.27334082,3249.6,3249.2,2.51745625]
[1642692919065,1.27334082,3249.6,3249.2,2.51975501]
[1642692919309,1.87334082,3249.6,3249.3,0.00738951]
[1642692919511,3.41325082,3249.6,3249.3,0.00738951]
[1642692919711,4.41325082,3249.6,3249.3,0.00738951]
[1642692920111,4.41325082,3249.6,3249.1,0.00852635]
[1642692920312,3.18717437,3249.5,3249.1,0.00852635]
[1642692920612,6.7636,3249.4,3249.1,0.00852635]
[1642692920817,0.7700256,3249.3,3249.1,0.00852635]
[1642692921013,2.30035601,3249.3,3249.1,0.00852635]
[1642692921416,0.7700256,3249.3,3249.1,0.00852635]
[1642692922416,7.01498141,3249.2,3249.1,0.00852635]
[1642692923355,5.85,3249.2,3249.1,0.00852635]
[1642692923559,6.85,3249.2,3249.1,0.00852635]
[1642692923756,7.9418,3249.4,3249.1,0.00852635]
[1642692924360,9.8527922,3249.4,3249.1,0.00852635]
[1642692926072,0.7700301,3249.3,3249.1,0.00852635]
[1642692926463,0.7700301,3249.3,3248.3,0.0018157]
[1642692926464,6.7700301,3249.3,3248.3,0.0018157]
[1642692926708,2.54024,3249.2,3248.3,0.0021616]
[1642692926915,1.42183964,3248.6,3248.4,0.00397897]
[1642692927112,2.42183964,3248.6,3248.4,0.00397897]
[1642692927514,2.42183964,3248.6,3246.9,6.75637]
[1642692927515,1.42183964,3248.6,3247.1,1.84629392]
[1642692927712,1.42183964,3248.6,3247.5,0.00459313]
[1642692927912,1.42183964,3248.6,3247.4,0.00568423]
[1642692927913,1.72183964,3248.6,3247.4,0.00568423]
[1642692928112,2.02183964,3248.6,3247.4,0.00568423]
[1642692928312,3.12352892,3248.5,3247.3,0.01084579]
[1642692928515,3.42352892,3248.5,3247.5,1.39680633]
[1642692928715,1.39235957,3248.1,3247.3,0.00625266]
[1642692928913,1.99235957,3248.1,3247.6,0.00454738]
[1642692929115,1.99235957,3248.1,3247.2,0.00682108]
[1642692929116,2.80071405,3248.0,3247.2,0.00682108]
[1642692929313,5.056,3248.0,3247.2,0.00682108]
[1642692929512,5.056,3248.0,3246.8,0.00909477]
[1642692929713,1.44945915,3247.3,3246.8,0.00909477]
[1642692930113,0.3,3247.3,3246.8,0.00909477]
[1642692930563,1.3,3247.5,3246.8,0.00909477]
[1642692930564,0.6,3247.5,3246.8,0.00909477]
[1642692930764,2.90946,3247.8,3246.8,0.00909477]
[1642692930963,2.90946,3247.8,3247.0,2.53306203]
[1642692930964,2.20946,3247.8,3247.0,2.53306203]
[1642692931168,3.50946,3247.8,3247.0,2.53306203]
[1642692931371,1.7391,3247.8,3247.1,0.0073895]
[1642692931569,3.8121,3248.0,3247.1,0.0073895]
[1642692931767,0.01249569,3248.5,3247.1,2.7958066]
[1642692931768,1.1889,3248.2,3247.1,2.7958066]
[1642692931972,1.1889,3248.2,3247.1,0.45498341]
[1642692932167,1.1889,3248.2,3247.2,0.00682108]
[1642692932369,1.1889,3248.2,3247.7,1.41266036]
[1642692932774,1.1889,3248.2,3247.8,0.00341054]
[1642692932973,2.4889,3248.2,3247.8,0.00341054]
[1642692933170,2.7889,3248.2,3247.8,0.00341054]
[1642692933371,1.1889,3248.2,3247.8,2.79182764]
[1642692933570,1.1889,3248.2,3247.8,0.77341054]
[1642692933770,3.9662,3248.5,3247.9,0.00284211]
[1642692933974,3.9662,3248.5,3248.0,1.20636338]
[1642692934419,3.9662,3248.5,3248.0,1.15806865]
[1642692934625,0.3,3248.4,3248.2,1.33911907]
[1642692934823,0.30170527,3248.4,3248.2,1.33911907]
[1642692935024,0.3,3248.5,3248.2,1.33911907]
[1642692935025,0.00113685,3248.3,3248.2,1.33911907]
[1642692935224,0.00113685,3248.3,3248.0,1.15806865]
[1642692935427,0.00170527,3248.3,3248.0,1.15806865]
[1642692935827,0.00170527,3248.3,3248.2,6.0122797]
[1642692936028,0.00170527,3248.3,3248.2,6.4552797]
[1642692936230,0.00170527,3248.3,3248.2,7.74914334]
[1642692937126,0.00170527,3248.3,3248.2,1.73686364]
[1642692937329,0.00170527,3248.3,3248.2,1.29386364]
[1642692937729,0.00970527,3248.3,3248.2,1.29386364]
[1642692938979,0.00970527,3248.3,3248.2,1.73686364]
[1642692939180,0.00970527,3248.3,3248.2,4.48686364]
[1642692939377,0.00970527,3248.3,3248.2,1.73686364]
[1642692940778,0.00970527,3248.3,3248.2,2.73686364]
[1642692940978,0.00970527,3248.3,3248.2,6.29513074]
[1642692941192,0.00560416,3248.3,3248.2,6.29513074]
[1642692941379,0.00560416,3248.3,3248.2,5.29626758]
[1642692941580,0.00560416,3248.3,3248.2,2.50785048]
[1642692942614,0.00560416,3248.3,3248.2,1.73800048]
[1642692943215,0.00560416,3248.3,3248.2,4.48800048]
[1642692943615,0.00560416,3248.3,3248.2,1.73800048]
[1642692945219,0.00560416,3248.3,3248.2,4.43800048]
[1642692945457,0.00560416,3248.3,3248.2,7.0559982]
[1642692945862,0.00560416,3248.3,3248.2,4.3459982]
[1642692946258,0.00560416,3248.3,3248.2,1.72800048]
[1642692946861,0.00560416,3248.3,3248.2,0.44413684]
[1642692951230,4.31756125,3249.1,3249.0,3.08001]
[1642692951422,0.80398814,3249.9,3249.1,0.07356562]
[1642692951621,1.40398814,3249.9,3249.1,0.07356562]
[1642692951820,0.01464435,3250.2,3249.1,0.07586225]
[1642692952021,0.01464435,3250.2,3249.1,5.32586225]
[1642692952223,1.53437406,3249.4,3249.3,0.06773641]
[1642692952421,1.53788425,3249.4,3249.2,0.00229663]
[1642692952620,0.00568424,3249.4,3249.2,0.00229663]
[1642692952822,1.37364225,3249.7,3249.3,0.71998]
[1642692953057,1.13069663,3250.0,3249.3,0.71998]
[1642692953258,0.00682108,3249.6,3249.3,0.71998]
[1642692953460,2.73069663,3250.0,3249.3,0.71998]
[1642692953658,1.26367745,3249.6,3249.3,0.71998]
[1642692953858,1.26367745,3249.6,3249.4,0.00113684]
[1642692954059,1.53755844,3249.7,3249.4,0.00113684]
[1642692954261,2.5516,3249.5,3249.4,0.00113684]
[1642692954664,1.0,3249.5,3249.4,0.00113684]
[1642692954866,0.00113685,3249.8,3249.4,0.00113684]
[1642692955263,2.73069663,3250.0,3249.4,0.00113684]
[1642692955463,2.73069663,3250.0,3249.4,0.00227369]
[1642692956065,1.39840786,3249.6,3249.4,0.00227369]
[1642692956265,2.13069663,3250.0,3249.4,0.00227369]
[1642692956266,1.14558216,3249.9,3249.4,0.00227369]
[1642692956466,2.14558216,3249.9,3249.4,0.00227369]
[1642692956726,2.44558216,3249.9,3249.4,0.00227369]
[1642692958921,2.74558216,3249.9,3249.4,0.00227369]
[1642692959122,1.0,3249.9,3249.4,0.00227369]
[1642692959323,1.0,3250.0,3249.4,0.00227369]
[1642692959724,0.00113685,3250.0,3249.4,0.00227369]
[1642692959922,0.00113685,3250.0,3249.5,2.30952]
[1642692960128,3.4125,3250.5,3249.8,1.47271696]
[1642692960326,3.4125,3250.5,3249.9,0.83111256]
[1642692960574,0.00113685,3250.2,3249.9,0.76971]
[1642692960774,3.9284,3250.7,3249.9,0.76971]
[1642692960974,0.00113684,3250.4,3250.0,0.00113685]
[1642692961775,1.36918815,3250.4,3250.0,0.00113685]
[1642692961975,1.66918815,3250.4,3250.0,0.00113685]
[1642692962176,1.96918815,3250.4,3250.0,0.00113685]
[1642692962781,1.66918815,3250.4,3250.0,0.00113685]
[1642692962984,0.3,3250.3,3250.0,0.00113685]
[1642692963278,1.9211712,3250.2,3250.0,0.00113685]
[1642692963477,0.3,3250.1,3250.0,0.00113685]
[1642692963679,0.3,3250.1,3249.5,1.53998]
[1642692963680,0.3,3250.1,3249.6,0.00341055]
[1642692964225,8.26905515,3249.7,3249.6,0.00341055]
[1642692964420,8.86905515,3249.7,3249.6,0.00341055]
[1642692964623,9.86905515,3249.7,3249.6,0.00341055]
[1642692965626,8.71629208,3249.7,3249.6,0.00341055]
[1642692966126,8.41629208,3249.7,3249.6,0.00341055]
[1642692966325,8.11629208,3249.7,3249.6,0.00341055]
[1642692966728,9.89457515,3249.7,3249.6,0.00341055]
[1642692967528,6.0,3249.6,3249.5,1.49339055]
[1642692967729,7.0,3249.6,3249.5,1.49339055]
[1642692968564,1.0,3249.6,3249.5,4.29602019]
[1642692968771,1.1701,3250.3,3249.5,4.29602019]
[1642692968967,1.1701,3250.3,3249.7,0.76978]
[1642692969168,0.00341055,3250.2,3249.7,0.76978]
[1642692969465,1.1701,3250.3,3249.7,0.76978]
[1642692969466,0.00284212,3250.1,3249.7,0.76978]
[1642692969870,0.0022737,3250.0,3249.7,0.76978]
[1642692970069,1.1701,3250.3,3249.7,0.76978]
[1642692970270,1.1701,3250.3,3249.8,0.00113685]
[1642692970472,0.00113685,3250.2,3249.8,0.00113685]
[1642692971071,6.0,3250.1,3249.7,0.72091685]
[1642692971269,6.00170527,3250.1,3249.7,0.72091685]
[1642692971474,1.00113685,3250.0,3249.7,0.72091685]
[1642692971719,0.00113685,3250.0,3249.7,0.72091685]
[1642692971916,0.00113685,3250.0,3249.8,0.3]
[1642692972313,3.9284,3250.7,3249.8,0.3]
[1642692972513,3.9284,3250.7,3249.9,2.66575424]
[1642692972713,0.00113685,3250.2,3250.0,1.06961]
[1642692972916,4.6704,3251.1,3250.1,1.5725331]
[1642692973116,4.6704,3251.1,3250.2,0.05351208]
[1642692973314,0.00227369,3250.6,3250.2,0.05351208]
[1642692973516,0.00227369,3250.6,3250.1,1.5725331]
[1642692973716,0.00170527,3250.5,3250.1,1.5725331]
[1642692973916,4.6704,3251.1,3250.1,1.5725331]
[1642692974117,1.0033717,3251.0,3250.1,1.5725331]
[1642692974316,1.46435202,3250.9,3250.3,2.30876]
[1642692974818,0.00170527,3250.8,3250.3,2.30876]
[1642692975217,0.00113684,3250.7,3250.3,2.30876]
[1642692975669,0.00170527,3250.8,3250.3,2.30876]
[1642692976070,0.00113684,3250.7,3250.3,2.30876]
[1642692977972,0.00113684,3250.7,3250.2,0.00170527]
[1642692978373,0.00913684,3250.7,3250.1,0.0022737]
[1642692978777,1.25385353,3250.7,3250.1,0.0022737]
[1642692979219,0.00913684,3250.7,3250.1,0.0022737]
[1642692979514,1.0033717,3251.0,3250.1,0.0022737]
[1642692979515,0.91174934,3251.0,3250.3,1.53933]
[1642692979914,0.91174934,3251.0,3250.4,0.00170527]
[1642692979915,0.00113685,3250.9,3250.4,0.00170527]
[1642692980919,0.00113685,3250.9,3250.5,0.76963]
[1642692982520,0.00113685,3250.9,3250.6,2.49310151]
[1642692982720,0.00113685,3250.9,3250.5,0.76963]
[1642692983165,0.30113685,3251.2,3250.5,0.76963]
[1642692983366,0.30113685,3251.2,3250.6,1.31378143]
[1642692983563,0.00113685,3251.1,3250.7,1.53912]
[1642692983763,0.00113685,3251.1,3250.7,1.54025685]
[1642692985972,0.00113685,3251.1,3250.7,0.00113685]
[1642692993774,0.00113685,3251.1,3250.5,1.53917]
[1642692993775,0.77084685,3251.1,3250.6,0.00170527]
[1642692994819,0.77084685,3251.1,3250.3,0.00341054]
[1642692995018,1.77084685,3251.1,3250.3,0.00341054]
[1642692995218,1.14517356,3251.0,3250.3,0.00341054]
[1642692995619,2.14517356,3251.0,3250.3,0.00341054]
[1642692995819,1.14517356,3251.0,3250.3,0.00341054]
[1642692996019,1.0,3251.0,3250.3,0.00341054]
[1642692996619,2.54059685,3251.1,3250.3,0.00341054]
[1642692996820,1.54059685,3251.1,3250.3,0.00341054]
[1642692997019,1.0,3251.0,3250.3,0.00341054]
[1642692997220,2.54059685,3251.1,3250.3,0.00341054]
[1642692997419,2.54059685,3251.1,3250.4,0.76969]
[1642692997621,1.77084685,3251.1,3250.4,0.76969]
[1642692997824,1.77084685,3251.1,3250.5,0.00227369]
[1642692998477,0.01216396,3251.0,3250.5,0.00227369]
[1642692998880,0.77084685,3251.1,3250.5,0.76969]
[1642692999082,0.00113685,3251.1,3250.6,2.5332033]
[1642692999378,0.00113685,3251.1,3250.7,0.00113685]
[1642692999777,0.00113685,3251.1,3250.7,1.46319648]
[1642692999981,0.00113685,3251.1,3250.9,1.12831043]
[1642693001579,0.00113685,3251.1,3250.8,0.76952]
[1642693002941,0.00113685,3251.1,3250.8,1.96947742]
[1642693003939,0.00113685,3251.1,3250.8,0.76952]
[1642693006367,0.00113685,3251.1,3250.8,0.76853361]
[1642693006967,0.2778518,3251.2,3250.8,0.76853361]
[1642693007168,0.2778518,3251.2,3250.9,0.00113685]
[1642693009071,0.0778518,3251.2,3250.9,0.00113685]
[1642693009821,0.0778518,3251.2,3250.7,0.0022737]
[1642693010419,0.0778518,3251.2,3250.7,2.83726368]
[1642693010620,0.0778518,3251.2,3250.7,0.0022737]
[1642693010820,0.0778518,3251.2,3250.8,0.00170527]
[1642693011018,0.0778518,3251.2,3250.7,0.0022737]
[1642693019122,5.6,3251.1,3250.6,1.5013537]
[1642693019323,5.6022737,3251.1,3250.6,1.5013537]
[1642693019523,1.76972,3251.0,3250.6,1.5013537]
[1642693019922,0.00113685,3250.9,3250.2,1.5394]
[1642693020324,0.00113685,3250.9,3250.3,0.00227369]
[1642693022578,0.00113685,3250.9,3250.4,0.76969]
[1642693022979,0.00113685,3250.9,3250.5,0.00113684]
[1642693025422,0.00023858,3250.9,3250.5,0.00113684]
[1642693025822,0.00023858,3250.9,3250.5,0.00203511]
[1642693026422,0.00023858,3250.9,3250.2,0.3]
[1642693026623,0.00023858,3250.9,3250.2,0.30374038]
[1642693026822,0.00023858,3250.9,3250.3,0.00317196]
[1642693027222,0.00023858,3250.9,3250.4,0.76967]
[1642693027625,0.00023858,3250.9,3250.5,0.00203511]
[1642693028567,0.00023858,3250.9,3250.5,2.82899499]
[1642693028968,0.00023858,3250.9,3250.6,0.00146669]
[1642693029171,0.00023858,3250.9,3250.6,0.44446669]
[1642693029373,0.00023858,3250.9,3250.6,0.74446669]
[1642693029571,0.00023858,3250.9,3250.7,0.00089827]
[1642693029771,0.00023858,3250.9,3250.7,0.77036827]
[1642693029973,0.00023858,3250.9,3250.8,0.3]
[1642693032819,0.00023858,3250.9,3250.8,5.093]
[1642693033220,0.0778518,3251.2,3250.8,5.093]
[1642693033623,0.00113685,3251.1,3250.9,0.05325685]
[1642693033824,0.0778518,3251.2,3251.1,4.74607622]
[1642693034024,0.0778518,3251.2,3251.1,4.593]
[1642693034025,5.18e-05,3251.2,3251.1,4.593]
[1642693034225,0.0018157,3251.8,3251.2,2.55]
[1642693034426,0.0018157,3251.8,3251.3,0.76932]
[1642693034624,0.00341054,3251.7,3251.3,1.36932]
[1642693035125,0.0018157,3251.8,3251.3,1.36932]
[1642693035126,0.00284211,3251.6,3251.3,1.36932]
[1642693035325,0.00284211,3251.6,3251.3,2.61868306]
[1642693035568,0.00227369,3251.5,3251.3,2.61868306]
[1642693035870,0.00170527,3251.4,3251.3,2.61868306]
[1642693036675,0.0018157,3251.8,3251.4,6.0]
[1642693037074,0.0018157,3251.8,3251.4,6.90741537]
[1642693037075,0.00170527,3251.7,3251.4,6.90741537]
[1642693037277,0.00170527,3251.7,3251.5,0.443]
[1642693037476,0.0018157,3251.8,3251.5,0.743]
[1642693037477,0.00113684,3251.6,3251.5,0.743]
[1642693037676,0.003112,3252.6,3251.6,6.0]
[1642693037876,0.003112,3252.6,3251.7,1.98126]
[1642693038077,0.003112,3252.6,3252.0,1.329596]
[1642693038078,0.00511581,3252.5,3252.0,1.329596]
[1642693038276,0.00511581,3252.5,3252.1,1.21216]
[1642693038477,0.00454739,3252.4,3252.2,0.3]
[1642693038681,0.00454739,3252.4,3252.3,5.743]
[1642693038879,0.003112,3252.6,3252.3,6.043]